bitfinex-derivatives/quotes_ETHF0:USTF0_20250327
["timestamp","ask_amount","ask_price","bid_price","bid_amount"]
[1743074605516,8.4134,2024.6,2024.5,0.98777]
[1743074606121,5.2074,2024.6,2024.5,0.98777]
[1743074606521,5.2074,2024.6,2024.5,2.31837]
[1743074607725,4.5302,2024.6,2024.5,2.31837]
[1743074608525,1.3224,2024.6,2024.5,2.31837]
[1743074611534,0.98779,2024.5,2024.4,0.98778]
[1743074611931,1.3445,2024.5,2024.4,0.98778]
[1743074612134,1.3445,2024.5,2024.4,2.29738]
[1743074612932,3.88970722,2024.8,2024.7,0.98768]
[1743074613636,4.87733722,2024.8,2024.7,0.98768]
[1743074613943,3.88970722,2024.8,2024.7,0.98768]
[1743074614234,5.31420722,2024.8,2024.7,2.28118]
[1743074616438,6.30183722,2024.8,2024.7,2.28118]
[1743074616638,6.30183722,2024.8,2024.7,0.98768]
[1743074617136,5.31420722,2024.8,2024.7,0.98768]
[1743074617324,5.31420722,2024.8,2024.7,2.33548]
[1743074620433,6.30183722,2024.8,2024.7,2.33548]
[1743074620636,6.30183722,2024.8,2024.7,0.98768]
[1743074621628,0.98773,2024.7,2024.6,0.98768]
[1743074621834,0.98773,2024.7,2024.3,2.46967]
[1743074621835,0.98777,2024.6,2024.5,0.98774]
[1743074622335,1.4124,2024.6,2024.5,0.98774]
[1743074623034,1.4124,2024.6,2024.5,1.69214]
[1743074623435,1.4124,2024.6,2024.5,2.37194]
[1743074624037,3.88970722,2024.8,2024.7,0.98768]
[1743074624331,5.23540722,2024.8,2024.7,0.98768]
[1743074628849,4.56090722,2024.8,2024.7,0.98768]
[1743074631639,4.56090722,2024.8,2024.7,2.41878]
[1743074632648,4.56090722,2024.8,2024.7,43.21878]
[1743074633552,4.56090722,2024.8,2024.7,0.98768]
[1743074634753,4.56090722,2024.8,2024.7,2.36618]
[1743074635251,4.56090722,2024.8,2024.7,0.98768]
[1743074635446,5.54853722,2024.8,2024.7,0.98768]
[1743074637341,8.74953722,2024.8,2024.7,0.98768]
[1743074638451,0.98773,2024.6,2024.5,0.98777]
[1743074638654,0.98782,2024.5,2024.4,0.98779]
[1743074638953,0.98792,2024.3,2024.2,0.98788]
[1743074639457,0.98792,2024.3,2024.2,41.78788]
[1743074640454,1.3574,2024.4,2024.3,0.98787]
[1743074640656,1.3574,2024.4,2024.3,2.39447]
[1743074640955,1.3574,2024.4,2024.3,3.09167]
[1743074641160,3.2078,2024.5,2024.4,0.98782]
[1743074641357,4.5336,2024.5,2024.4,2.38642]
[1743074641755,3.21520722,2024.8,2024.7,0.98768]
[1743074641955,3.21520722,2024.8,2024.7,44.55198]
[1743074642653,0.00740722,2024.8,2024.7,44.55198]
[1743074645265,0.00740722,2024.8,2024.7,41.78768]
[1743074645566,0.00740722,2024.8,2024.7,43.78208]
[1743074645860,1.41970722,2024.8,2024.7,43.78208]
[1743074646462,2.40733722,2024.8,2024.7,43.78208]
[1743074646656,1.41970722,2024.8,2024.7,42.46788]
[1743074646962,1.41970722,2024.8,2024.7,43.78208]
[1743074648968,0.98768,2024.7,2024.6,0.98769]
[1743074649263,1.68218,2024.7,2024.6,0.98769]
[1743074649561,3.08508,2024.7,2024.6,0.98769]
[1743074651363,1.4029,2024.7,2024.6,4.19549]
[1743074651563,0.00740722,2024.8,2024.7,0.98768]
[1743074651763,1.43130722,2024.8,2024.7,2.35778]
[1743074659871,0.00740722,2024.8,2024.7,2.35778]
[1743074661167,1.3035,2025.0,2024.9,0.98758]
[1743074661565,1.3035,2025.0,2024.9,3.00698]
[1743074661765,3.2078,2025.5,2025.4,0.98734]
[1743074661766,3.903,2025.5,2025.4,0.98734]
[1743074662668,3.2078,2025.5,2025.4,0.98734]
[1743074662873,3.2078,2025.5,2025.4,1.64394]
[1743074663173,1.3188,2025.6,2025.5,0.98729]
[1743074663374,1.3188,2025.6,2025.5,5.52979]
[1743074663877,1.3188,2025.6,2025.5,2.32199]
[1743074664673,0.00740722,2025.7,2025.6,0.98724]
[1743074665673,1.3188,2025.8,2025.7,0.98719]
[1743074668674,3.21520722,2026.0,2025.9,0.98709]
[1743074668879,0.00740722,2026.0,2025.9,0.98709]
[1743074669271,0.00740722,2026.0,2025.9,2.36559]
[1743074675083,0.00740722,2026.0,2025.9,3.03289]
[1743074678284,0.00740722,2026.0,2025.9,1.65439]
[1743074679388,1.32530722,2026.0,2025.9,1.65439]
[1743074680582,1.32530722,2026.0,2025.9,2.94639]
[1743074681679,1.32530722,2026.0,2025.9,0.98709]
[1743074683388,1.32530722,2026.0,2025.9,1.67779]
[1743074684988,1.32530722,2026.0,2025.9,3.00299]
[1743074687783,1.32530722,2026.0,2025.9,0.98709]
[1743074689584,2.31236722,2026.0,2025.9,0.98709]
[1743074689787,2.31236722,2026.0,2025.6,4.5325]
[1743074689986,2.0805,2025.9,2025.8,0.98714]
[1743074691288,3.06759,2025.9,2025.8,0.98714]
[1743074691481,2.0805,2025.9,2025.8,0.98714]
[1743074695593,3.06759,2025.9,2025.6,0.6923]
[1743074695799,2.0885,2025.8,2025.7,0.98719]
[1743074698295,1.3788,2025.8,2025.7,0.98719]
[1743074698603,1.3788,2025.8,2025.7,1.67799]
[1743074699596,0.00740722,2026.0,2025.9,0.98709]
[1743074700997,1.36940722,2026.0,2025.9,0.98709]
[1743074703697,2.35644722,2026.0,2025.9,0.98709]
[1743074703996,0.98713,2025.9,2025.8,0.98714]
[1743074704197,2.0667,2025.9,2025.8,0.98714]
[1743074704399,1.4098,2025.9,2025.8,0.98714]
[1743074704596,1.4098,2025.9,2025.8,2.30114]
[1743074707001,1.4098,2025.9,2025.8,0.98714]
[1743074707402,2.39691,2025.9,2025.6,1.389]
[1743074707602,1.4098,2025.9,2025.8,0.98714]
[1743074707802,0.99448722,2026.0,2025.9,0.98709]
[1743074709599,0.00740722,2026.0,2025.7,1.389]
[1743074709803,0.99446722,2026.0,2025.9,0.98709]
[1743074710003,0.98713,2025.9,2025.8,0.98712]
[1743074710205,0.98714,2025.8,2025.7,2.37616]
[1743074710396,0.98712,2025.9,2025.8,0.98712]
[1743074712508,4.16112,2025.9,2025.8,0.98712]
[1743074713005,0.98714,2025.8,2025.7,2.37619]
[1743074713207,7.36893,2025.9,2025.8,0.98714]
[1743074714112,0.98714,2025.8,2025.7,2.37617]
[1743074718315,6.3818,2025.9,2025.7,1.389]
[1743074718610,7.36889,2025.9,2025.8,1.301]
[1743074719711,7.36889,2025.9,2025.8,2.28814]
[1743074720113,7.36889,2025.9,2025.8,1.301]
[1743074720303,7.36889,2025.9,2025.8,2.28814]
[1743074722505,5.51759,2025.9,2025.8,2.28814]
[1743074722713,8.72539,2025.9,2025.8,1.301]
[1743074723215,8.72539,2025.9,2025.8,2.28814]
[1743074723602,8.72539,2025.9,2025.8,1.301]
[1743074724612,8.72539,2025.9,2025.8,2.28814]
[1743074725211,8.72539,2025.9,2025.8,1.301]
[1743074725416,8.72539,2025.9,2025.8,2.28814]
[1743074727515,7.7383,2025.9,2025.8,2.28814]
[1743074728519,8.72539,2025.9,2025.8,2.28814]
[1743074746116,7.7383,2025.9,2025.8,2.28814]
[1743074746320,8.72539,2025.9,2025.8,2.28814]
[1743074746720,8.72539,2025.9,2025.8,2.94754]
[1743074747626,7.7383,2025.9,2025.8,2.94754]
[1743074747818,8.72539,2025.9,2025.8,2.94754]
[1743074748623,7.7383,2025.9,2025.8,2.94754]
[1743074749015,8.72539,2025.9,2025.8,2.94754]
[1743074749215,7.7383,2025.9,2025.8,2.94754]
[1743074750224,8.72539,2025.9,2025.8,2.94754]
[1743074750621,7.7383,2025.9,2025.8,2.94754]
[1743074753027,8.72539,2025.9,2025.8,2.94754]
[1743074753622,0.98738,2025.4,2025.3,0.98731]
[1743074754227,3.00148,2025.4,2025.3,0.98731]
[1743074755516,0.98738,2025.3,2025.2,0.99480722]
[1743074755722,5.55958,2025.3,2025.2,0.00740722]
[1743074760226,0.98753,2025.0,2024.9,0.98753]
[1743074760533,7.36333,2025.0,2024.9,0.98753]
[1743074761132,8.05773,2025.0,2024.9,0.98753]
[1743074761828,0.98758,2024.9,2024.8,2.3572]
[1743074762037,0.98763,2024.8,2024.7,0.00740722]
[1743074762529,0.98777,2024.5,2024.4,0.6498]
[1743074762728,4.15577,2024.5,2024.4,0.6498]
[1743074763124,5.49837,2024.5,2024.4,1.63762]
[1743074763324,5.49837,2024.5,2024.4,0.6498]
[1743074764627,0.98782,2024.4,2024.3,1.4168]
[1743074764832,0.98787,2024.3,2024.2,0.00740722]
[1743074765134,4.19567,2024.3,2024.2,0.00740722]
[1743074767225,4.19567,2024.3,2024.2,1.30400722]
[1743074767932,4.19567,2024.3,2024.2,2.29192722]
[1743074768627,4.22268861,2024.3,2024.2,2.29192722]
[1743074769722,4.2414222,2024.3,2024.2,2.29192722]
[1743074770235,4.2414222,2024.3,2024.2,1.30400722]
[1743074770540,4.2414222,2024.3,2024.2,2.29192722]
[1743074771038,4.26015572,2024.3,2024.2,2.29192722]
[1743074771741,4.26015572,2024.3,2024.2,1.30400722]
[1743074772130,4.27891393,2024.3,2024.2,2.29192722]
[1743074772329,4.27891393,2024.3,2024.2,1.30400722]
[1743074773033,4.27891393,2024.3,2024.2,2.29192722]
[1743074773235,4.29767029,2024.3,2024.2,2.29192722]
[1743074773428,4.29767029,2024.3,2024.2,0.00740722]
[1743074773631,4.29767029,2024.3,2024.2,0.99532722]
[1743074773931,3.30980029,2024.3,2024.2,0.99532722]
[1743074774125,4.29767029,2024.3,2024.2,0.99532722]
[1743074774328,5.65307029,2024.3,2024.2,0.99532722]
[1743074774532,5.65307029,2024.3,2024.2,0.00740722]
[1743074774731,5.67180357,2024.3,2024.2,0.00740722]
[1743074775631,5.67180357,2024.3,2024.2,0.99532722]
[1743074775839,5.69055891,2024.3,2024.2,0.99532722]
[1743074776041,4.70268891,2024.3,2024.2,0.99532722]
[1743074776832,5.70931223,2024.3,2024.2,1.66662722]
[1743074777345,5.70931223,2024.3,2024.2,0.67870722]
[1743074777734,5.70931223,2024.3,2024.2,0.00740722]
[1743074779244,5.70931223,2024.3,2023.9,0.6899]
[1743074779245,0.98802,2024.0,2023.9,2.0947]
[1743074779436,7.36582,2024.0,2023.9,3.08277]
[1743074779637,6.3778,2024.0,2023.9,3.08277]
[1743074780038,7.92664223,2024.0,2023.9,3.08277]
[1743074781450,6.53604223,2024.0,2023.9,3.08277]
[1743074781843,7.52406223,2024.0,2023.9,3.08277]
[1743074782146,8.82256223,2024.0,2023.9,2.0947]
[1743074783146,8.82256223,2024.0,2023.9,3.08277]
[1743074784237,8.82256223,2024.0,2023.9,2.0947]
[1743074784439,0.98812,2023.8,2023.7,0.98813]
[1743074784749,0.98812,2023.8,2023.7,3.05873]
[1743074785044,1.14636223,2023.8,2023.7,3.05873]
[1743074786048,1.14636223,2023.8,2023.7,2.0706]
[1743074786244,1.85116223,2023.8,2023.7,2.0706]
[1743074786647,1.85116223,2023.8,2023.7,3.05877]
[1743074788343,1.85116223,2023.8,2023.7,2.0706]
[1743074788749,1.85116223,2023.8,2023.7,3.05877]
[1743074788949,1.85116223,2023.8,2023.7,2.0706]
[1743074789147,1.85116223,2023.8,2023.6,1.70248]
[1743074789148,0.86304223,2023.8,2023.5,2.39093]
[1743074789351,4.19601,2023.6,2023.5,3.06353]
[1743074789848,5.49651,2023.6,2023.5,3.06353]
[1743074790051,5.65475223,2023.6,2023.5,3.06353]
[1743074790252,5.65475223,2023.6,2023.5,2.0753]
[1743074790441,0.98835,2023.4,2023.3,0.98831]
[1743074790747,0.98835,2023.4,2023.3,3.09651]
[1743074791143,1.85869223,2023.4,2023.3,3.09651]
[1743074792235,0.87034223,2023.4,2023.3,3.09651]
[1743074792442,0.15824223,2023.4,2023.3,3.09651]
[1743074792949,0.15824223,2023.4,2023.3,43.89651]
[1743074793545,3.2078,2023.6,2023.5,0.98826]
[1743074793854,3.2078,2023.9,2023.8,0.98812]
[1743074794051,4.6226,2023.9,2023.8,0.98812]
[1743074794349,4.6226,2023.9,2023.8,41.78812]
[1743074794753,4.6226,2023.9,2023.8,42.46142]
[1743074794945,3.2078,2023.9,2023.8,42.46142]
[1743074796155,5.57197,2023.9,2023.8,0.98812]
[1743074796651,4.5839,2023.9,2023.8,1.66752]
[1743074796852,5.57197,2023.9,2023.8,1.66752]
[1743074797856,4.5839,2023.9,2023.8,1.66752]
[1743074798959,5.57197,2023.9,2023.8,1.66752]
[1743074799157,4.5839,2023.9,2023.8,1.66752]
[1743074799656,5.57197,2023.9,2023.8,1.66752]
[1743074800047,8.75397,2023.9,2023.8,0.6794]
[1743074800360,0.98812,2023.8,2023.7,2.30844]
[1743074800557,2.35892,2023.8,2023.7,2.30844]
[1743074800758,2.35892,2023.8,2023.7,0.98814]
[1743074800954,3.01802,2023.8,2023.7,0.98814]
[1743074801359,0.98817,2023.7,2023.6,2.32028]
[1743074801561,2.35897,2023.7,2023.6,2.32028]
[1743074803548,1.3708,2023.7,2023.6,2.32028]
[1743074803960,2.35897,2023.7,2023.6,2.32028]
[1743074805667,1.3708,2023.7,2023.6,2.32028]
[1743074805961,2.35897,2023.7,2023.6,2.32028]
[1743074809065,2.35897,2023.7,2023.6,1.3321]
[1743074809458,2.35897,2023.7,2023.6,2.32031]
[1743074810365,2.35897,2023.7,2023.6,1.3321]
[1743074810758,0.98821,2023.6,2023.5,1.68622]
[1743074810959,6.22685957,2023.6,2023.5,3.00072]
[1743074811568,3.22684957,2023.6,2023.5,3.00072]
[1743074812468,0.01904957,2023.6,2023.5,3.00072]
[1743074814468,1.3198,2023.7,2023.6,0.95237138]
[1743074814655,1.3198,2023.7,2023.6,2.32957138]
[1743074814968,2.30797,2023.7,2023.6,2.32957138]
[1743074816267,1.3198,2023.7,2023.6,2.32957138]
[1743074818266,0.98815,2023.8,2023.6,2.32957138]
[1743074818267,0.99543722,2024.0,2023.7,2.47038]
[1743074818573,1.30990722,2024.0,2023.9,0.98807]
[1743074819165,2.29792722,2024.0,2023.9,2.34617]
[1743074820974,2.29792722,2024.0,2023.9,0.98807]
[1743074821166,0.98807,2023.9,2023.8,3.00368]
[1743074821372,3.07047,2023.9,2023.8,1.64558]
[1743074823173,2.0824,2023.9,2023.8,1.64558]
[1743074823374,3.07047,2023.9,2023.8,1.64558]
[1743074824276,2.0824,2023.9,2023.8,1.64558]
[1743074824977,1.3857,2023.9,2023.8,1.64558]
[1743074825172,0.00740722,2024.0,2023.9,0.98807]
[1743074825472,0.00740722,2024.0,2023.9,2.33347]
[1743074826374,1.31880722,2024.0,2023.9,2.33347]
[1743074827075,2.30682722,2024.0,2023.9,2.33347]
[1743074827474,2.30682722,2024.0,2023.9,0.98807]
[1743074828077,0.98815,2023.8,2023.7,0.9881]
[1743074828574,0.98815,2023.8,2023.7,2.3856]
[1743074828775,3.04515,2023.8,2023.7,2.3856]
[1743074832271,0.98817,2023.7,2023.6,0.7041]
[1743074832477,2.47055,2023.6,2023.0,3.2078]
[1743074832682,0.98834,2023.4,2023.3,0.98832]
[1743074833078,0.98834,2023.4,2023.3,41.78832]
[1743074833079,3.04294,2023.4,2023.3,41.78832]
[1743074833486,0.98836,2023.3,2023.2,2.29898]
[1743074833785,1.3448,2023.3,2023.2,2.29898]
[1743074835571,2.33316,2023.3,2023.2,2.29898]
[1743074836780,1.3448,2023.3,2023.2,2.29898]
[1743074837180,2.33316,2023.3,2023.2,2.29898]
[1743074837485,2.33316,2023.3,2023.2,0.98838]
[1743074838076,1.3448,2023.3,2023.2,0.98838]
[1743074838284,1.3448,2023.3,2023.2,2.38018]
[1743074838483,2.33316,2023.3,2023.2,2.38018]
[1743074838982,0.98848,2023.1,2023.0,0.98846]
[1743074839182,0.98848,2023.1,2023.0,2.38026]
[1743074839587,2.33128,2023.1,2023.0,2.38026]
[1743074839889,1.3428,2023.1,2023.0,2.38026]
[1743074841377,0.6577,2023.4,2023.3,0.98836]
[1743074841583,0.6671,2023.8,2023.3,2.47091]
[1743074841887,1.9946,2023.8,2023.7,0.98817]
[1743074842294,0.9882,2023.7,2023.6,0.98819]
[1743074842485,2.3003,2023.7,2023.6,0.98819]
[1743074843087,0.98821,2023.6,2023.5,2.38204]
[1743074843296,5.62231,2023.6,2023.5,0.98824]
[1743074843689,0.98826,2023.5,2023.4,41.78828]
[1743074843888,2.41456,2023.5,2023.4,41.78828]
[1743074844089,0.98831,2023.4,2023.3,0.98832]
[1743074844392,3.09711,2023.4,2023.3,0.98832]
[1743074844696,0.98836,2023.3,2023.2,3.0182]
[1743074844889,1.4263,2023.3,2023.2,0.98841]
[1743074845096,7.39306,2023.6,2023.5,0.98826]
[1743074845287,0.98828,2023.5,2023.4,0.98827]
[1743074845794,6.4048,2023.6,2023.5,0.98826]
[1743074846495,8.75291,2023.6,2023.5,0.98826]
[1743074846992,8.75291,2023.6,2023.5,1.66156]
[1743074848099,0.98831,2023.4,2023.3,0.98833]
[1743074848290,0.98831,2023.4,2023.3,2.28973]
[1743074848998,2.35871,2023.4,2023.3,2.28973]
[1743074849584,3.05941,2023.4,2023.3,2.28973]
[1743074849789,3.05941,2023.4,2023.3,0.98833]
[1743074850488,3.05941,2023.4,2023.3,2.34693]
[1743074850999,2.0711,2023.4,2023.3,2.34693]
[1743074851297,3.05941,2023.4,2023.3,2.34693]
[1743074851496,3.05941,2023.4,2023.2,0.6964]
[1743074851497,0.98836,2023.3,2023.2,0.98839]
[1743074851699,6.23686,2023.3,2023.2,0.98839]
[1743074853394,5.55676,2023.3,2023.2,0.98839]
[1743074853595,5.55676,2023.3,2023.2,1.64169]
[1743074856299,0.98841,2023.2,2023.1,2.34702]
[1743074856497,2.40561,2023.2,2023.1,2.34702]
[1743074857496,0.98846,2023.1,2023.0,1.69117]
[1743074857798,3.06626,2023.1,2023.0,1.69117]
[1743074858393,3.06626,2023.1,2023.0,3.05477]
[1743074860300,3.06626,2023.1,2023.0,0.98847]
[1743074860804,3.06626,2023.1,2023.0,2.35207]
[1743074861594,0.98851,2023.0,2022.9,41.78852]
[1743074861797,2.28761,2023.0,2022.9,0.98852]
[1743074862004,2.28761,2023.0,2022.9,2.30542]
[1743074863404,0.98849,2023.1,2023.0,0.98846]
[1743074863608,1.69649,2023.1,2023.0,2.30536]
[1743074867210,3.05299,2023.1,2023.0,2.30536]
[1743074870416,1.3565,2023.1,2023.0,2.30536]
[1743074870612,1.65674,2023.4,2023.3,0.98836]
[1743074870811,3.00864,2023.4,2023.3,0.98836]
[1743074871108,0.98841,2023.2,2023.1,1.69513]
[1743074871315,0.98841,2023.2,2023.1,3.01283]
[1743074871706,2.34031,2023.2,2023.1,3.01283]
[1743074873411,5.52531,2023.2,2023.1,3.01283]
[1743074873809,2.34031,2023.2,2023.1,3.01283]
[1743074874023,5.52531,2023.2,2023.1,3.01283]
[1743074882222,5.52531,2023.2,2023.1,2.0244]
[1743074882923,5.52531,2023.2,2023.1,3.01286]
[1743074885313,5.52531,2023.2,2023.1,2.0244]
[1743074885519,0.98851,2023.0,2022.9,0.98852]
[1743074885725,0.9886,2022.8,2022.7,0.6744]
[1743074885920,0.9886,2022.8,2022.7,0.6675]
[1743074886224,4.16659,2022.9,2022.8,0.9886]
[1743074886819,4.5545,2022.9,2022.8,2.2822]
[1743074887019,4.5545,2022.9,2022.8,2.9476]
[1743074887230,1.3765,2022.9,2022.8,2.9476]
[1743074887823,2.36506,2022.9,2022.8,2.9476]
[1743074888622,1.3765,2022.9,2022.8,2.9476]
[1743074888822,3.21520722,2023.0,2022.9,0.98856]
[1743074889126,3.21520722,2023.0,2022.9,2.30226]
[1743074890024,4.62080722,2023.0,2022.9,2.30226]
[1743074891528,1.41300722,2023.0,2022.9,2.30226]
[1743074892124,2.40151722,2023.0,2022.9,2.30226]
[1743074892324,1.41300722,2023.0,2022.9,2.30226]
[1743074893421,2.40151722,2023.0,2022.9,2.30226]
[1743074893635,3.11141722,2023.0,2022.9,2.30226]
[1743074894131,5.33070722,2023.0,2022.7,1.65612]
[1743074894329,0.9886,2022.8,2022.7,1.65612]
[1743074895232,0.9887,2022.7,2022.5,40.8]
[1743074895539,1.69855,2022.7,2022.6,2.3353]
[1743074895736,1.69855,2022.7,2022.6,0.9887]
[1743074895931,4.88455,2022.7,2022.6,0.9887]
[1743074896234,4.88455,2022.7,2022.6,2.3353]
[1743074897538,4.88455,2022.7,2022.6,1.3466]
[1743074897736,0.98878,2022.6,2022.3,2.47212]
[1743074898029,0.9888,2022.5,2022.4,0.98877]
[1743074898235,0.9888,2022.5,2022.4,40.8]
[1743074899135,0.9888,2022.5,2022.4,41.7888]
[1743074899331,0.9888,2022.5,2022.4,43.2026]
[1743074899632,0.98874,2022.6,2022.5,0.9887]
[1743074899834,0.98874,2022.6,2022.5,2.4025]
[1743074900032,0.98874,2022.6,2022.5,3.114]
[1743074901036,0.98874,2022.6,2022.5,3.11405]
[1743074903333,8.09239,2022.7,2022.6,0.9887]
[1743074903533,8.09239,2022.7,2022.6,2.2895]
[1743074903833,0.9887,2022.6,2022.5,1.70022]
[1743074904027,8.0924,2022.7,2022.6,0.9887]
[1743074904232,8.0924,2022.7,2022.6,2.2984]
[1743074904940,8.0924,2022.7,2022.5,1.70021]
[1743074904941,0.9887,2022.6,2022.5,1.70021]
[1743074905137,0.98884,2022.4,2022.3,0.9888]
[1743074905642,4.17284,2022.4,2022.3,0.9888]
[1743074905828,0.98885,2022.3,2022.2,2.0188]
[1743074906029,8.05824,2022.4,2022.3,0.98885]
[1743074906332,8.05824,2022.4,2022.3,2.29855]
[1743074907631,8.05824,2022.4,2022.3,1.3097]
[1743074907835,0.9889,2022.2,2022.1,40.8]
[1743074908538,0.98895,2022.1,2022.0,2.41796]
[1743074908843,0.98895,2022.1,2022.0,0.98896]
[1743074909245,0.989,2022.0,2021.9,43.92713]
[1743074909441,1.6666,2022.0,2021.9,42.9381]
[1743074909743,1.6666,2022.0,2021.9,2.1381]
[1743074909938,1.6666,2022.0,2021.9,3.12714]
[1743074910148,1.6666,2022.0,2021.9,2.1381]
[1743074910340,1.6666,2022.0,2021.9,3.12714]
[1743074910743,1.6666,2022.0,2021.9,2.1381]
[1743074911441,1.6666,2022.0,2021.9,3.12714]
[1743074911641,4.19676,2022.1,2022.0,0.989]
[1743074911837,6.3898,2022.1,2022.0,2.393]
[1743074912040,0.6691,2022.4,2022.0,2.393]
[1743074912347,3.8531,2022.4,2022.3,0.98885]
[1743074912538,3.8531,2022.4,2022.1,1.404]
[1743074912743,0.9889,2022.2,2022.1,2.39294]
[1743074913249,0.9889,2022.2,2022.1,0.98892]
[1743074913250,0.98894,2022.2,2022.1,0.98892]
[1743074913851,1.3735,2022.2,2022.1,0.98892]
[1743074914146,2.3624,2022.2,2022.1,0.98892]
[1743074914546,1.3735,2022.2,2022.1,0.98892]
[1743074914750,2.3624,2022.2,2022.1,0.98892]
[1743074915049,1.3735,2022.2,2022.1,0.98892]
[1743074915443,2.3624,2022.2,2022.1,0.98892]
[1743074915640,1.3735,2022.2,2022.1,0.98892]
[1743074916542,2.3624,2022.2,2022.1,0.98892]
[1743074917547,0.98895,2022.1,2022.0,2.35617]
[1743074917747,2.39555,2022.1,2022.0,0.98897]
[1743074918347,2.39555,2022.1,2022.0,2.34367]
[1743074918549,0.989,2022.0,2021.9,1.69811]
[1743074918858,2.0653,2022.0,2021.9,3.05281]
[1743074919046,1.4066,2022.0,2021.9,3.05281]
[1743074920956,4.19673,2022.2,2022.1,0.98895]
[1743074921155,5.55063,2022.2,2022.1,0.98895]
[1743074921952,2.47266,2021.9,2021.3,2.47335]
[1743074922148,0.98919,2021.7,2021.6,2.97357]
[1743074922645,2.32409,2021.7,2021.6,2.97357]
[1743074923161,2.32404,2021.7,2021.6,1.9844]
[1743074924044,2.32404,2021.7,2021.6,0.6904]
[1743074924650,0.98919,2021.6,2021.5,42.094]
[1743074924851,4.5427,2021.6,2021.5,2.28324]
[1743074925262,3.2078,2021.6,2021.5,2.28324]
[1743074925769,3.2078,2021.6,2021.3,1.6673]
[1743074925770,0.98929,2021.4,2021.3,1.6673]
[1743074925967,5.49898,2021.5,2021.4,2.31619]
[1743074926362,5.49898,2021.5,2021.4,1.3269]
[1743074926561,5.49898,2021.5,2021.4,2.31619]
[1743074926860,7.0097,2021.5,2020.6,2.47418]
[1743074927064,3.2078,2021.3,2021.0,3.2078]
[1743074927371,0.98945,2021.1,2021.0,0.98944]
[1743074927772,2.29015,2021.1,2021.0,0.98944]
[1743074927974,1.3007,2021.1,2021.0,0.98944]
[1743074928269,0.98929,2021.5,2021.2,0.98939]
[1743074928471,2.31199,2021.4,2021.3,1.63564]
[1743074928773,2.31199,2021.4,2021.3,0.6463]
[1743074928965,2.31199,2021.4,2021.3,1.63564]
[1743074930163,2.31199,2021.4,2021.3,0.6463]
[1743074930364,0.98944,2021.1,2021.0,0.6696]
[1743074930576,0.98949,2021.0,2020.9,1.70482]
[1743074930773,3.02719,2021.0,2020.9,1.70482]
[1743074931080,3.02719,2021.0,2020.9,0.7153]
[1743074931771,0.98953,2020.9,2020.8,40.8]
[1743074932074,0.98962,2020.8,2020.7,0.98958]
[1743074932274,10.77,2020.7,2019.8,0.36356641]
[1743074932570,10.77,2020.7,2019.8,0.99007]
[1743074932571,3.2078,2019.9,2019.8,0.99007]
[1743074932768,4.19782,2019.9,2019.8,0.99007]
[1743074932968,3.2078,2019.9,2019.8,0.99007]
[1743074933170,0.9901,2019.8,2019.7,0.99008]
[1743074933363,1.3447,2019.8,2019.7,0.99008]
[1743074935175,2.33477,2019.8,2019.7,0.99008]
[1743074936070,3.2078,2019.9,2019.8,0.99007]
[1743074936271,3.2078,2019.9,2019.5,44.0078]
[1743074936272,0.99017,2019.6,2019.5,40.8]
[1743074936477,0.99017,2019.6,2018.8,1.387]
[1743074936478,6.6908,2019.6,2018.8,1.387]
[1743074936684,3.2078,2019.2,2018.8,3.86341]
[1743074936873,2.37083,2019.1,2019.0,0.99042]
[1743074937179,0.99047,2019.0,2018.9,0.99049]
[1743074937366,0.99056,2018.8,2018.7,11.58084895]
[1743074937675,3.2078,2018.8,2018.7,53.37145895]
[1743074938074,3.2078,2018.8,2018.7,41.79061]
[1743074939270,4.19836,2018.8,2018.7,41.79061]
[1743074939471,3.2078,2018.8,2018.7,41.79061]
[1743074940669,3.2078,2019.1,2018.8,3.46698]
[1743074940874,3.52542629,2019.4,2019.3,0.99032]
[1743074941077,6.7308,2019.6,2019.1,4.9521]
[1743074941287,9.11017,2019.6,2019.5,0.99022]
[1743074941479,8.12,2019.6,2019.5,41.79022]
[1743074941782,5.68241,2020.3,2020.0,0.98998]
[1743074941974,1.3892,2020.2,2020.1,0.98988]
[1743074942371,2.37908,2020.2,2020.1,0.98988]
[1743074942577,2.37908,2020.2,2020.1,2.34128]
[1743074943579,2.37908,2020.2,2020.1,0.98988]
[1743074944183,0.00742629,2020.4,2020.3,0.98983]
[1743074944686,0.98966,2020.7,2020.6,0.98963]
[1743074944979,0.98998,2020.1,2019.9,0.00742629]
[1743074945179,3.2078,2019.5,2017.5,17.71356492]
[1743074945377,3.2078,2017.6,2016.2,3.2078]
[1743074945576,49.55429,2017.8,2016.1,20.90529432]
[1743074945577,3.2078,2017.2,2016.1,20.90529432]
[1743074945783,0.99166,2016.6,2016.1,14.53389432]
[1743074945972,4.527,2017.1,2016.8,0.9907]
[1743074946169,4.527,2017.1,2016.9,0.9907]
[1743074946384,0.00742629,2017.2,2016.7,6.29e-06]
[1743074946675,3.2078,2017.1,2016.8,9.91459432]
[1743074946880,0.00742629,2017.2,2017.0,0.9907]
[1743074947384,0.00742629,2017.2,2017.1,16.45039432]
[1743074947584,0.00742629,2017.2,2017.1,3.328]
[1743074947780,1.12877203,2017.2,2017.1,13.24259432]
[1743074948177,1.12877203,2017.2,2017.1,18.79039432]
[1743074948475,0.7502195,2017.7,2017.6,0.99115]
[1743074948673,0.7502195,2017.7,2017.6,52.69644432]
[1743074948674,3.9580195,2017.7,2017.6,52.69644432]
[1743074948882,4.684,2017.8,2017.7,0.9911]
[1743074949081,5.67505,2017.8,2017.7,12.25159432]
[1743074949484,4.684,2017.8,2017.7,12.25159432]